[Event "*** MasterClass Titled Tuesday Blitz"]
[Site "Chess.com"]
[Date "2017.12.05"]
[Round "7"]
[White "larso"]
[Black "maciek_92"]
[Result "0-1"]
[WhiteElo "2366"]
[BlackElo "2577"]
[TimeControl "180+2"]
[EndTime "15:48:07 PST"]
[Termination "maciek_92 won by resignation"]

1. d4 {[%clk 0:03:01.9]} 1... Nf6 {[%clk 0:03:00.5]} 2. Bf4 {[%clk 0:03:01.4]}
2... g6 {[%clk 0:02:58.3]} 3. Nc3 {[%clk 0:03:01.9]} 3... Bg7 {[%clk 0:02:59.7]}
4. Nf3 {[%clk 0:03:01.6]} 4... d6 {[%clk 0:02:58.6]} 5. Qd2 {[%clk 0:03:01.7]}
5... O-O {[%clk 0:02:55.4]} 6. Bh6 {[%clk 0:03:02.3]} 6... c5 {[%clk 0:02:44.2]}
7. Bxg7 {[%clk 0:02:54.7]} 7... Kxg7 {[%clk 0:02:45]} 8. e3 {[%clk 0:02:56.1]}
8... Nc6 {[%clk 0:02:41.6]} 9. h4 {[%clk 0:02:53.6]} 9... Bg4 {[%clk 0:02:41.9]}
10. d5 {[%clk 0:02:53.2]} 10... Bxf3 {[%clk 0:02:40.6]} 11. gxf3 {[%clk
0:02:54.1]} 11... Ne5 {[%clk 0:02:42.1]} 12. Be2 {[%clk 0:02:55.5]} 12... h5
{[%clk 0:02:43.3]} 13. f4 {[%clk 0:02:54.5]} 13... Ned7 {[%clk 0:02:44.3]} 14.
O-O-O {[%clk 0:02:54.1]} 14... a6 {[%clk 0:02:38.4]} 15. e4 {[%clk 0:02:55.2]}
15... b5 {[%clk 0:02:39.6]} 16. Qe3 {[%clk 0:02:56.6]} 16... Qc7 {[%clk
0:02:25.6]} 17. f5 {[%clk 0:02:53.7]} 17... b4 {[%clk 0:02:24.5]} 18. Nb1 {[%clk
0:02:50.9]} 18... Ne5 {[%clk 0:02:26]} 19. Rhg1 {[%clk 0:02:50.9]} 19... c4
{[%clk 0:02:26.9]} 20. fxg6 {[%clk 0:02:44.3]} 20... fxg6 {[%clk 0:02:27.4]} 21.
f4 {[%clk 0:02:44.8]} 21... Neg4 {[%clk 0:02:25.5]} 22. Qd4 {[%clk 0:02:46.1]}
22... Kh7 {[%clk 0:02:22.5]} 23. Bxc4 {[%clk 0:02:44.8]} 23... Rac8 {[%clk
0:02:14.2]} 24. Bd3 {[%clk 0:02:45.9]} 24... a5 {[%clk 0:02:10.9]} 25. Rde1
{[%clk 0:02:46.6]} 25... Qc5 {[%clk 0:01:57]} 26. Qxc5 {[%clk 0:02:35.8]} 26...
Rxc5 {[%clk 0:01:58.9]} 27. Nd2 {[%clk 0:02:22.3]} 27... a4 {[%clk 0:02:00]} 28.
Kb1 {[%clk 0:02:20.5]} 28... Rfc8 {[%clk 0:01:59.2]} 29. Re2 {[%clk 0:02:17.3]}
29... Kg7 {[%clk 0:01:55.7]} 30. Nf3 {[%clk 0:02:15.8]} 30... a3 {[%clk
0:01:43.8]} 31. Nd4 {[%clk 0:02:13.7]} 31... Kf7 {[%clk 0:01:40.3]} 32. Ne6
{[%clk 0:02:14.8]} 32... Ra5 {[%clk 0:01:39.2]} 33. Rf1 {[%clk 0:02:13]} 33...
axb2 {[%clk 0:01:39.4]} 34. Kxb2 {[%clk 0:02:14]} 34... Rc3 {[%clk 0:01:39.5]}
35. Nd4 {[%clk 0:02:11.6]} 35... Rca3 {[%clk 0:01:34.4]} 36. Bc4 {[%clk
0:02:11.3]} 36... Rc5 {[%clk 0:01:34.5]} 37. Bb3 {[%clk 0:02:11.9]} 37... Rc7
{[%clk 0:00:31.5]} 38. e5 {[%clk 0:02:09.3]} 38... Rxb3+ {[%clk 0:00:32.8]} 39.
axb3 {[%clk 0:02:05.4]} 39... Nxd5 {[%clk 0:00:34.7]} 40. exd6 {[%clk
0:02:05.5]} 40... exd6 {[%clk 0:00:34.6]} 41. f5 {[%clk 0:02:06.2]} 41... Nde3
{[%clk 0:00:30.9]} 42. fxg6+ {[%clk 0:01:58.4]} 42... Kxg6 {[%clk 0:00:32.8]}
43. Rfe1 {[%clk 0:01:59]} 43... Re7 {[%clk 0:00:23.8]} 44. Nc6 {[%clk
0:01:56.7]} 44... Re4 {[%clk 0:00:24.8]} 45. Kc1 {[%clk 0:01:51.4]} 45... Kf5
{[%clk 0:00:18.8]} 46. Kd2 {[%clk 0:01:50.4]} 46... Kf4 {[%clk 0:00:20.2]} 47.
c3 {[%clk 0:01:23.4]} 47... bxc3+ {[%clk 0:00:20]} 48. Kxc3 {[%clk 0:01:25.3]}
48... d5 {[%clk 0:00:19.9]} 49. Nd4 {[%clk 0:01:23.8]} 49... Ne5 {[%clk
0:00:15.1]} 50. Nc2 {[%clk 0:01:23.7]} 50... Nd1+ {[%clk 0:00:15]} 51. Kd2
{[%clk 0:01:24.1]} 51... Nb2 {[%clk 0:00:10]} 52. Rxe4+ {[%clk 0:01:24.4]} 52...
dxe4 {[%clk 0:00:11.9]} 53. Ne3 {[%clk 0:01:25]} 53... Nf3+ {[%clk 0:00:12]} 54.
Ke2 {[%clk 0:01:15.5]} 54... Nxe1 {[%clk 0:00:13.9]} 55. Nd5+ {[%clk 0:01:11.9]}
55... Ke5 {[%clk 0:00:15]} 56. Nc3 {[%clk 0:01:11.7]} 56... Nf3 {[%clk
0:00:12.7]} 57. Ke3 {[%clk 0:01:12.1]} 57... Nd4 {[%clk 0:00:13.7]} 58. Nxe4
{[%clk 0:01:11.5]} 58... Nf5+ {[%clk 0:00:14.9]} 59. Kf3 {[%clk 0:01:10.2]}
59... Nd3 {[%clk 0:00:15.2]} 60. Ng5 {[%clk 0:01:00.5]} 60... Nxh4+ {[%clk
0:00:15.5]} 61. Kg3 {[%clk 0:01:01.8]} 61... Nf5+ {[%clk 0:00:16.4]} 62. Kh3
{[%clk 0:01:03.3]} 62... Nf4+ {[%clk 0:00:17.1]} 63. Kh2 {[%clk 0:01:04.1]}
63... Kd4 {[%clk 0:00:16.5]} 64. Nh7 {[%clk 0:01:00.1]} 64... Ke3 {[%clk
0:00:10.7]} 65. b4 {[%clk 0:00:59.4]} 65... Nd5 {[%clk 0:00:10.1]} 66. b5 {[%clk
0:01:00.3]} 66... Kf4 {[%clk 0:00:11.3]} 67. Kh3 {[%clk 0:00:59.5]} 67... Kf3
{[%clk 0:00:11.3]} 68. Ng5+ {[%clk 0:00:59.5]} 68... Kf4 {[%clk 0:00:12.4]} 69.
Ne6+ {[%clk 0:01:00.3]} 69... Ke5 {[%clk 0:00:12.3]} 70. Ng5 {[%clk 0:01:00.4]}
70... Kf6 {[%clk 0:00:10]} 71. Ne4+ {[%clk 0:00:56.4]} 71... Kg6 {[%clk
0:00:10.2]} 72. Kh2 {[%clk 0:00:57.7]} 72... h4 {[%clk 0:00:07.6]} 73. Kh3
{[%clk 0:00:58.9]} 73... Kh5 {[%clk 0:00:08.7]} 74. b6 {[%clk 0:00:54.8]} 74...
Nxb6 {[%clk 0:00:08.9]} 75. Nf6+ {[%clk 0:00:56.1]} 75... Kg6 {[%clk 0:00:09.7]}
76. Ne4 {[%clk 0:00:57.3]} 76... Nd5 {[%clk 0:00:10.9]} 77. Kg4 {[%clk
0:00:58.6]} 77... Nde3+ {[%clk 0:00:12]} 78. Kf4 {[%clk 0:00:59.3]} 78... Ng2+
{[%clk 0:00:12.1]} 79. Kg4 {[%clk 0:01:00.1]} 79... Nfe3+ {[%clk 0:00:12.9]} 80.
Kh3 {[%clk 0:01:00.8]} 80... Kf5 {[%clk 0:00:12.9]} 81. Nd6+ {[%clk 0:01:01.6]}
81... Kf4 {[%clk 0:00:13.6]} 82. Nf7 {[%clk 0:00:59.7]} 82... Kf5 {[%clk
0:00:12.2]} 83. Nd6+ {[%clk 0:01:00.2]} 83... Kg6 {[%clk 0:00:12.7]} 84. Ne4
{[%clk 0:00:59.5]} 84... Kh6 {[%clk 0:00:13]} 85. Nf6 {[%clk 0:00:59]} 85... Kg5
{[%clk 0:00:14.1]} 86. Ne4+ {[%clk 0:00:59.9]} 86... Kf5 {[%clk 0:00:13.7]} 87.
Ng3+ {[%clk 0:00:56.2]} 87... Kf4 {[%clk 0:00:12.9]} 88. Ne2+ {[%clk 0:00:57.3]}
88... Kg5 {[%clk 0:00:13.8]} 89. Nd4 {[%clk 0:00:51.9]} 89... Nf4+ {[%clk
0:00:14.9]} 90. Kh2 {[%clk 0:00:53.4]} 90... Kg4 {[%clk 0:00:15.6]} 91. Kh1
{[%clk 0:00:52.2]} 91... Nf5 {[%clk 0:00:15.4]} 92. Nc2 {[%clk 0:00:51.3]} 92...
Kg3 {[%clk 0:00:13.9]} 93. Ne1 {[%clk 0:00:49.2]} 93... Nd4 {[%clk 0:00:13.3]}
94. Nc2 {[%clk 0:00:48]} 94... Nxc2 {[%clk 0:00:13.9]} 95. Kg1 {[%clk
0:00:45.1]} 95... Ne3 {[%clk 0:00:14.9]} 96. Kh1 {[%clk 0:00:46.5]} 96... Ng4
{[%clk 0:00:16.8]} 97. Kg1 {[%clk 0:00:47.7]} 97... h3 {[%clk 0:00:17.8]} 98.
Kh1 {[%clk 0:00:49]} 98... Nf2+ {[%clk 0:00:15.1]} 0-1

[Event "*** MasterClass Titled Tuesday Blitz"]
[Site "Chess.com"]
[Date "2017.12.05"]
[Round "7"]
[White "saraswathii"]
[Black "dyziotomi99"]
[Result "1-0"]
[WhiteElo "2314"]
[BlackElo "2430"]
[TimeControl "180+2"]
[EndTime "15:48:43 PST"]
[Termination "saraswathii won by resignation"]

1. d4 {[%clk 0:03:00.9]} 1... d5 {[%clk 0:02:59.9]} 2. Bf4 {[%clk 0:02:59]} 2...
c5 {[%clk 0:03:00.1]} 3. e3 {[%clk 0:02:55.4]} 3... Nc6 {[%clk 0:03:01.2]} 4. c3
{[%clk 0:02:55.7]} 4... Nf6 {[%clk 0:03:00.5]} 5. Nf3 {[%clk 0:02:55.2]} 5...
Qb6 {[%clk 0:03:00.2]} 6. Qb3 {[%clk 0:02:54.6]} 6... c4 {[%clk 0:02:52.5]} 7.
Qc2 {[%clk 0:02:54.7]} 7... Bf5 {[%clk 0:02:51.9]} 8. Qc1 {[%clk 0:02:55]} 8...
e6 {[%clk 0:02:52.4]} 9. Nbd2 {[%clk 0:02:51.9]} 9... Qd8 {[%clk 0:02:49.2]} 10.
Be2 {[%clk 0:02:39.1]} 10... Bd6 {[%clk 0:02:48.4]} 11. Bg3 {[%clk 0:02:37.8]}
11... O-O {[%clk 0:02:42.7]} 12. O-O {[%clk 0:02:37.6]} 12... b5 {[%clk
0:02:43.5]} 13. Ne5 {[%clk 0:02:20.2]} 13... Bxe5 {[%clk 0:02:42.1]} 14. dxe5
{[%clk 0:02:19.3]} 14... Nd7 {[%clk 0:02:41.2]} 15. f4 {[%clk 0:02:19]} 15...
Nc5 {[%clk 0:02:31.3]} 16. Rd1 {[%clk 0:02:16.9]} 16... Nd3 {[%clk 0:02:20.1]}
17. Bxd3 {[%clk 0:02:17.3]} 17... Bxd3 {[%clk 0:02:21.1]} 18. Nf3 {[%clk
0:02:17.7]} 18... a5 {[%clk 0:02:22]} 19. Ne1 {[%clk 0:02:16.8]} 19... Be4
{[%clk 0:02:22.4]} 20. Qd2 {[%clk 0:02:13.3]} 20... Qb6 {[%clk 0:02:22.6]} 21.
a3 {[%clk 0:02:07.7]} 21... b4 {[%clk 0:02:22.1]} 22. axb4 {[%clk 0:02:08]}
22... axb4 {[%clk 0:02:22.5]} 23. Bh4 {[%clk 0:02:03.2]} 23... Rfb8 {[%clk
0:02:09]} 24. cxb4 {[%clk 0:01:40.5]} 24... Nxb4 {[%clk 0:02:05.3]} 25. Bf2
{[%clk 0:01:37.8]} 25... Nc6 {[%clk 0:02:01.5]} 26. Nf3 {[%clk 0:01:27.4]} 26...
h6 {[%clk 0:01:58.9]} 27. Rxa8 {[%clk 0:01:19.1]} 27... Rxa8 {[%clk 0:01:58.6]}
28. Qc3 {[%clk 0:01:19.8]} 28... Ra2 {[%clk 0:01:53.7]} 29. Rd2 {[%clk
0:01:19.7]} 29... Ra1+ {[%clk 0:01:52]} 30. Ne1 {[%clk 0:01:20.2]} 30... Nb4
{[%clk 0:01:53]} 31. b3 {[%clk 0:01:13.3]} 31... Nd3 {[%clk 0:01:51.2]} 32. Qxa1
{[%clk 0:01:12.9]} 32... Nxe1 {[%clk 0:01:46.4]} 33. Qxe1 {[%clk 0:01:11]} 33...
c3 {[%clk 0:01:37.1]} 34. Rd1 {[%clk 0:00:52.8]} 34... c2 {[%clk 0:01:31.1]} 35.
Ra1 {[%clk 0:00:48.1]} 35... Qxb3 {[%clk 0:01:31]} 36. Qc1 {[%clk 0:00:46.7]}
36... Kh7 {[%clk 0:01:30.2]} 37. Ra7 {[%clk 0:00:41.2]} 37... Kg6 {[%clk
0:01:26]} 38. Ra1 {[%clk 0:00:38.3]} 38... Qd3 {[%clk 0:01:24.9]} 39. Qe1 {[%clk
0:00:35.1]} 39... h5 {[%clk 0:01:23.2]} 40. Rc1 {[%clk 0:00:34.4]} 40... Qb3
{[%clk 0:01:22.1]} 41. Bh4 {[%clk 0:00:34.8]} 41... Kh7 {[%clk 0:01:20.1]} 42.
Qe2 {[%clk 0:00:28.5]} 42... Kg6 {[%clk 0:01:17.5]} 43. g4 {[%clk 0:00:26.9]}
43... hxg4 {[%clk 0:01:12.8]} 44. Qxg4+ {[%clk 0:00:27.2]} 44... Kh7 {[%clk
0:01:13.1]} 45. Qh3 {[%clk 0:00:26]} 45... Qd3 {[%clk 0:01:04.9]} 46. Bf2+
{[%clk 0:00:14.7]} 46... Kg8 {[%clk 0:01:04.1]} 47. Qf1 {[%clk 0:00:14.9]} 47...
Qb3 {[%clk 0:01:00.1]} 48. h4 {[%clk 0:00:15.5]} 48... Bf3 {[%clk 0:00:48.9]}
49. h5 {[%clk 0:00:13.2]} 49... Bxh5 {[%clk 0:00:47.2]} 50. Qh3 {[%clk
0:00:08.5]} 50... Bd1 {[%clk 0:00:43.4]} 51. Qf1 {[%clk 0:00:04.8]} 51... Qb2
{[%clk 0:00:42.4]} 52. Rxd1 {[%clk 0:00:06]} 52... cxd1=Q {[%clk 0:00:41.8]} 53.
Qxd1 {[%clk 0:00:07.9]} 53... Qb4 {[%clk 0:00:41.6]} 54. Qg4 {[%clk 0:00:08.8]}
54... Qe4 {[%clk 0:00:41.6]} 55. Kf1 {[%clk 0:00:09]} 55... Kh7 {[%clk
0:00:40.5]} 56. Bg1 {[%clk 0:00:08.4]} 56... Qd3+ {[%clk 0:00:40.3]} 57. Kg2
{[%clk 0:00:09.4]} 57... Qc2+ {[%clk 0:00:40.5]} 58. Bf2 {[%clk 0:00:10.4]}
58... Qe4+ {[%clk 0:00:40]} 59. Kh2 {[%clk 0:00:11.8]} 59... Qc2 {[%clk
0:00:40.3]} 60. Kg3 {[%clk 0:00:12.6]} 60... Qb1 {[%clk 0:00:39.5]} 61. Qh3+
{[%clk 0:00:13.5]} 61... Kg8 {[%clk 0:00:39.9]} 62. Qg2 {[%clk 0:00:15]} 62...
Qg6+ {[%clk 0:00:39.7]} 63. Kh2 {[%clk 0:00:16]} 63... Qh5+ {[%clk 0:00:40.2]}
64. Kg1 {[%clk 0:00:15.5]} 64... Qe2 {[%clk 0:00:40.7]} 65. Qf1 {[%clk
0:00:15.4]} 65... Qg4+ {[%clk 0:00:41]} 66. Qg2 {[%clk 0:00:16.7]} 66... Qe2
{[%clk 0:00:41.5]} 67. Kh2 {[%clk 0:00:17.6]} 67... Qh5+ {[%clk 0:00:41.8]} 68.
Qh3 {[%clk 0:00:18.1]} 68... Qe2 {[%clk 0:00:42.2]} 69. Kg2 {[%clk 0:00:19]}
69... Qd3 {[%clk 0:00:43]} 70. Qg4 {[%clk 0:00:19.9]} 70... Qe4+ {[%clk
0:00:43.3]} 71. Kh2 {[%clk 0:00:20.6]} 71... Qc2 {[%clk 0:00:43.6]} 72. Kg1
{[%clk 0:00:19.9]} 72... Qb1+ {[%clk 0:00:44.2]} 73. Kh2 {[%clk 0:00:21.1]}
73... Qc2 {[%clk 0:00:44.6]} 74. Kg3 {[%clk 0:00:21.6]} 74... Qb1 {[%clk
0:00:45.3]} 75. f5 {[%clk 0:00:22]} 75... exf5 {[%clk 0:00:45]} 76. Qh4 {[%clk
0:00:21]} 76... Qb6 {[%clk 0:00:38.9]} 77. Qg5 {[%clk 0:00:21.4]} 77... Qe6
{[%clk 0:00:34.7]} 78. Kf4 {[%clk 0:00:22.3]} 78... f6 {[%clk 0:00:20.4]} 79.
exf6 {[%clk 0:00:20.2]} 79... Qe4+ {[%clk 0:00:19.9]} 80. Kg3 {[%clk 0:00:20.9]}
80... Qe5+ {[%clk 0:00:20.7]} 81. Kg2 {[%clk 0:00:20]} 81... Qe4+ {[%clk
0:00:20.5]} 82. Kh2 {[%clk 0:00:20.2]} 82... Qe5+ {[%clk 0:00:21]} 83. Kg2
{[%clk 0:00:21.4]} 83... Qe4+ {[%clk 0:00:21.8]} 84. Kg1 {[%clk 0:00:22.7]}
84... Qg4+ {[%clk 0:00:21.8]} 85. Qxg4 {[%clk 0:00:23.5]} 85... fxg4 {[%clk
0:00:22.9]} 86. fxg7 {[%clk 0:00:24.6]} 86... Kxg7 {[%clk 0:00:18.7]} 87. Kg2
{[%clk 0:00:26]} 87... Kg6 {[%clk 0:00:20]} 88. Kg3 {[%clk 0:00:27.2]} 88... Kg5
{[%clk 0:00:21.3]} 89. Be1 {[%clk 0:00:27.9]} 89... Kf5 {[%clk 0:00:22.3]} 90.
Bc3 {[%clk 0:00:28.1]} 90... Kg5 {[%clk 0:00:23.1]} 91. Be5 {[%clk 0:00:27.9]}
91... Kf5 {[%clk 0:00:22.1]} 92. Bc7 {[%clk 0:00:25.1]} 92... Kg5 {[%clk
0:00:20.1]} 93. Bb6 {[%clk 0:00:25.4]} 93... Kf5 {[%clk 0:00:20.8]} 94. Kh4
{[%clk 0:00:26.2]} 94... d4 {[%clk 0:00:20.1]} 95. exd4 {[%clk 0:00:23.6]} 95...
Kf4 {[%clk 0:00:20.5]} 96. Bc7+ {[%clk 0:00:23.5]} 96... Ke4 {[%clk 0:00:21.6]}
97. Be5 {[%clk 0:00:23.8]} 97... Ke3 {[%clk 0:00:23]} 98. Kxg4 {[%clk
0:00:24.3]} 1-0

[Event "*** MasterClass Titled Tuesday Blitz"]
[Site "Chess.com"]
[Date "2017.12.05"]
[Round "7"]
[White "dusanacns"]
[Black "RaphaeI"]
[Result "1-0"]
[WhiteElo "2611"]
[BlackElo "2512"]
[TimeControl "180+2"]
[EndTime "15:49:22 PST"]
[Termination "dusanacns won by resignation"]

1. d4 {[%clk 0:02:59]} 1... Nf6 {[%clk 0:02:53.5]} 2. Nf3 {[%clk 0:02:59.3]}
2... g6 {[%clk 0:02:53.8]} 3. Bg5 {[%clk 0:03:00.1]} 3... Bg7 {[%clk 0:02:54.4]}
4. Nbd2 {[%clk 0:03:01.2]} 4... O-O {[%clk 0:02:54.9]} 5. e4 {[%clk 0:03:02]}
5... d6 {[%clk 0:02:56.1]} 6. c3 {[%clk 0:03:03]} 6... c5 {[%clk 0:02:57.6]} 7.
dxc5 {[%clk 0:03:03.9]} 7... dxc5 {[%clk 0:02:57.4]} 8. Bc4 {[%clk 0:03:05]}
8... h6 {[%clk 0:02:56.5]} 9. Bh4 {[%clk 0:03:05.5]} 9... Nc6 {[%clk 0:02:57.1]}
10. O-O {[%clk 0:03:05.3]} 10... Nh5 {[%clk 0:02:56.7]} 11. Qe2 {[%clk
0:03:03.2]} 11... Qc7 {[%clk 0:02:57.4]} 12. Rfe1 {[%clk 0:03:01.1]} 12... Na5
{[%clk 0:02:51.2]} 13. e5 {[%clk 0:02:47.4]} 13... Nxc4 {[%clk 0:02:46.3]} 14.
Nxc4 {[%clk 0:02:48.4]} 14... Be6 {[%clk 0:02:46.3]} 15. a4 {[%clk 0:02:37.7]}
15... Rad8 {[%clk 0:02:34.7]} 16. b3 {[%clk 0:02:35.1]} 16... Nf4 {[%clk
0:02:28.6]} 17. Qe4 {[%clk 0:02:34.1]} 17... Nd5 {[%clk 0:01:35.7]} 18. Rac1
{[%clk 0:02:31.3]} 18... Bf5 {[%clk 0:01:36.6]} 19. Qe2 {[%clk 0:02:23.2]} 19...
Nf4 {[%clk 0:01:37.3]} 20. Qe3 {[%clk 0:02:24.4]} 20... Nd3 {[%clk 0:01:37.6]}
21. Bg3 {[%clk 0:02:24.6]} 21... Nxe1 {[%clk 0:01:35.9]} 22. Rxe1 {[%clk
0:02:25.2]} 22... e6 {[%clk 0:01:29.8]} 23. Nd6 {[%clk 0:02:19.8]} 23... Qc6
{[%clk 0:01:25.5]} 24. h4 {[%clk 0:02:18.8]} 24... Bg4 {[%clk 0:01:24.3]} 25.
Nh2 {[%clk 0:02:15.6]} 25... Bf5 {[%clk 0:01:19.9]} 26. Bf4 {[%clk 0:02:16.6]}
26... g5 {[%clk 0:00:41.9]} 27. hxg5 {[%clk 0:02:16.6]} 27... hxg5 {[%clk
0:00:43.8]} 28. Bxg5 {[%clk 0:02:10.6]} 28... Rxd6 {[%clk 0:00:44.5]} 29. exd6
{[%clk 0:02:08.5]} 29... Qxd6 {[%clk 0:00:46.4]} 30. Bh6 {[%clk 0:02:04.5]}
30... Rd8 {[%clk 0:00:38.3]} 31. Qg5 {[%clk 0:01:59.5]} 31... Bg6 {[%clk
0:00:39.1]} 32. Bxg7 {[%clk 0:02:00.1]} 32... Kxg7 {[%clk 0:00:39.9]} 33. Ng4
{[%clk 0:02:01.4]} 33... Qd2 {[%clk 0:00:36.3]} 34. Qf6+ {[%clk 0:01:48.2]}
34... Kg8 {[%clk 0:00:34.6]} 35. Qe5 {[%clk 0:01:44.6]} 35... Rd3 {[%clk
0:00:23]} 36. Nf6+ {[%clk 0:01:04.3]} 36... Kf8 {[%clk 0:00:23.7]} 37. Qb8+
{[%clk 0:01:05.3]} 37... Kg7 {[%clk 0:00:18]} 38. Ne8+ {[%clk 0:01:06.2]} 38...
Kh7 {[%clk 0:00:14.5]} 39. Qe5 {[%clk 0:00:58.6]} 39... Qxc3 {[%clk 0:00:12]}
40. Qh2+ {[%clk 0:00:45.7]} 40... Kg8 {[%clk 0:00:11.9]} 41. Rf1 {[%clk
0:00:46.1]} 41... Kf8 {[%clk 0:00:10.6]} 42. Qb8 {[%clk 0:00:44.8]} 42... Ke7
{[%clk 0:00:09.7]} 43. Nc7 {[%clk 0:00:42.1]} 43... Qxb3 {[%clk 0:00:08.4]} 44.
Qe8+ {[%clk 0:00:31.2]} 44... Kf6 {[%clk 0:00:09.6]} 45. Qh8+ {[%clk 0:00:32]}
45... Ke7 {[%clk 0:00:10.9]} 46. Qe8+ {[%clk 0:00:31.6]} 46... Kf6 {[%clk
0:00:12.3]} 47. Qh8+ {[%clk 0:00:32.5]} 47... Ke7 {[%clk 0:00:13.8]} 48. Qh4+
{[%clk 0:00:32]} 48... Kd7 {[%clk 0:00:13.2]} 49. Nb5 {[%clk 0:00:31.8]} 49...
a6 {[%clk 0:00:14.5]} 50. Na7 {[%clk 0:00:30.5]} 50... Kc7 {[%clk 0:00:15.3]}
51. Qf4+ {[%clk 0:00:31.1]} 51... Kb6 {[%clk 0:00:14.5]} 52. Nc8+ {[%clk
0:00:31.9]} 52... Ka5 {[%clk 0:00:13.4]} 53. Qc7+ {[%clk 0:00:32.6]} 53... b6
{[%clk 0:00:12.4]} 54. Ne7 {[%clk 0:00:30.3]} 54... Rd1 {[%clk 0:00:11.3]} 55.
Nc6+ {[%clk 0:00:30.2]} 55... Kxa4 {[%clk 0:00:12.6]} 56. Qf4+ {[%clk
0:00:31.1]} 56... c4 {[%clk 0:00:10]} 57. Rxd1 {[%clk 0:00:29.1]} 57... Qxd1+
{[%clk 0:00:11.1]} 58. Kh2 {[%clk 0:00:31]} 58... Qh5+ {[%clk 0:00:12.1]} 59.
Kg1 {[%clk 0:00:31.9]} 59... Qd1+ {[%clk 0:00:14]} 60. Kh2 {[%clk 0:00:32.9]}
60... Qd5 {[%clk 0:00:12.3]} 61. Qc7 {[%clk 0:00:23.3]} 61... Qc5 {[%clk
0:00:13.5]} 62. Qd7 {[%clk 0:00:21.5]} 62... b5 {[%clk 0:00:11.6]} 63. Qd1+
{[%clk 0:00:22.3]} 63... Ka3 {[%clk 0:00:07.5]} 64. Qc1+ {[%clk 0:00:23.6]}
64... Ka2 {[%clk 0:00:06.1]} 65. Qd2+ {[%clk 0:00:24.3]} 65... Ka3 {[%clk
0:00:04.7]} 66. Qc1+ {[%clk 0:00:24.7]} 66... Ka2 {[%clk 0:00:05.6]} 67. Qd2+
{[%clk 0:00:23.6]} 67... Kb1 {[%clk 0:00:06.9]} 68. Nb4 {[%clk 0:00:19.2]} 68...
c3 {[%clk 0:00:08.2]} 69. Qa2+ {[%clk 0:00:16.7]} 69... Kc1 {[%clk 0:00:09.5]}
70. Qa1+ {[%clk 0:00:17.6]} 70... Kd2 {[%clk 0:00:09]} 71. Na2 {[%clk
0:00:18.5]} 71... c2 {[%clk 0:00:07.4]} 72. Qc1+ {[%clk 0:00:18.8]} 72... Kd3
{[%clk 0:00:08.8]} 73. Qe1 {[%clk 0:00:18.6]} 73... Qh5+ {[%clk 0:00:09.5]} 74.
Kg3 {[%clk 0:00:18]} 74... Qg5+ {[%clk 0:00:09.1]} 75. Kh2 {[%clk 0:00:19.2]}
75... Qh6+ {[%clk 0:00:08.7]} 76. Kg3 {[%clk 0:00:20]} 76... Qg5+ {[%clk
0:00:10]} 77. Kh2 {[%clk 0:00:21.2]} 77... c1=Q {[%clk 0:00:10.3]} 78. Nxc1+
{[%clk 0:00:21.2]} 78... Kc2 {[%clk 0:00:11.7]} 79. Ne2 {[%clk 0:00:21.9]} 79...
Qe5+ {[%clk 0:00:10.1]} 80. Kg1 {[%clk 0:00:16.6]} 80... Bd3 {[%clk 0:00:10.8]}
81. Qc1+ {[%clk 0:00:17.7]} 81... Kb3 {[%clk 0:00:12.1]} 82. Qd1+ {[%clk
0:00:17.6]} 82... Kc4 {[%clk 0:00:05.3]} 83. Nc1 {[%clk 0:00:17.3]} 83... Qc3
{[%clk 0:00:05]} 84. Na2 {[%clk 0:00:14.7]} 84... Qc2 {[%clk 0:00:03.8]} 85.
Qg4+ {[%clk 0:00:15.6]} 85... Kb3 {[%clk 0:00:04.6]} 86. Nb4 {[%clk 0:00:16.2]}
86... Qc1+ {[%clk 0:00:05.5]} 87. Kh2 {[%clk 0:00:17.4]} 87... Bc4 {[%clk
0:00:06.4]} 88. Nxa6 {[%clk 0:00:18]} 88... Qh6+ {[%clk 0:00:07.4]} 89. Kg1
{[%clk 0:00:18.9]} 89... Qc1+ {[%clk 0:00:07.1]} 90. Kh2 {[%clk 0:00:20]} 90...
f5 {[%clk 0:00:08.2]} 91. Qg3+ {[%clk 0:00:19.6]} 91... Qc3 {[%clk 0:00:08.5]}
92. Qd6 {[%clk 0:00:19.1]} 92... Qh8+ {[%clk 0:00:08.2]} 93. Kg1 {[%clk
0:00:19.7]} 93... Qa1+ {[%clk 0:00:08.7]} 94. Kh2 {[%clk 0:00:21]} 94... Qh8+
{[%clk 0:00:09.7]} 95. Kg1 {[%clk 0:00:22.1]} 95... Qa1+ {[%clk 0:00:10.3]} 96.
Kh2 {[%clk 0:00:23.2]} 96... Qh8+ {[%clk 0:00:11.3]} 97. Kg3 {[%clk 0:00:24.2]}
97... Qc3+ {[%clk 0:00:11.7]} 98. f3 {[%clk 0:00:24.8]} 98... b4 {[%clk
0:00:09.5]} 99. Qd1+ {[%clk 0:00:23.8]} 99... Kb2 {[%clk 0:00:09.1]} 100. Qd6
{[%clk 0:00:20.9]} 100... b3 {[%clk 0:00:08.9]} 101. Nc5 {[%clk 0:00:22.2]}
101... Qb4 {[%clk 0:00:03.2]} 102. Nd3+ {[%clk 0:00:22.6]} 102... Kc3 {[%clk
0:00:04.2]} 103. Nxb4 {[%clk 0:00:22.2]} 1-0

[Event "*** MasterClass Titled Tuesday Blitz"]
[Site "Chess.com"]
[Date "2017.12.05"]
[Round "8"]
[White "Sulvyfex"]
[Black "indfraeng"]
[Result "1-0"]
[WhiteElo "1350"]
[BlackElo "1811"]
[TimeControl "180+2"]
[EndTime "15:53:54 PST"]
[Termination "Sulvyfex won by resignation"]

1. e4 {[%clk 0:02:48.6]} 1... c6 {[%clk 0:02:58.6]} 2. d4 {[%clk 0:02:19.8]}
2... d5 {[%clk 0:02:58.5]} 3. e5 {[%clk 0:02:17.5]} 3... Bf5 {[%clk 0:02:57]} 4.
Nf3 {[%clk 0:02:15.4]} 4... e6 {[%clk 0:02:55.1]} 5. Be2 {[%clk 0:02:13.5]} 5...
h6 {[%clk 0:02:52.1]} 6. O-O {[%clk 0:02:11]} 6... Ne7 {[%clk 0:02:51.1]} 7. Be3
{[%clk 0:02:08.9]} 7... Nd7 {[%clk 0:02:49.3]} 8. Nbd2 {[%clk 0:02:06.8]} 8...
c5 {[%clk 0:02:46.3]} 9. c4 {[%clk 0:02:02.4]} 9... cxd4 {[%clk 0:02:35.5]} 10.
Nxd4 {[%clk 0:01:59.7]} 10... Bh7 {[%clk 0:02:33.3]} 11. Qa4 {[%clk 0:01:56.4]}
11... Nf5 {[%clk 0:02:33]} 12. cxd5 {[%clk 0:01:37.5]} 12... Nxd4 {[%clk
0:02:25.5]} 13. Bxd4 {[%clk 0:01:33.3]} 13... exd5 {[%clk 0:02:26]} 14. e6
{[%clk 0:01:27.6]} 14... Be7 {[%clk 0:02:21.3]} 15. Bxg7 {[%clk 0:01:25.4]}
15... Rg8 {[%clk 0:02:18]} 16. exd7+ {[%clk 0:01:26.7]} 16... Qxd7 {[%clk
0:02:18.4]} 17. Bb5 {[%clk 0:01:23]} 17... Rxg7 {[%clk 0:02:16.6]} 18. Bxd7+
{[%clk 0:01:23.8]} 1-0